[Event "31st Kavala Open-A 2022"]
[Site "Kavala"]
[Date "2022.07.29"]
[Round "5.5"]
[White "Ladopoulos, Dimitrios"]
[Black "Beerdsen, Thomas"]
[Result "1/2-1/2"]
[ECO "A06"]
[WhiteElo "2335"]
[BlackElo "2500"]
[Annotator "TA"]
[PlyCount "40"]
[EventDate "2022.07.27"]
[EventType "swiss"]
[EventCountry "GRE"]
[SourceTitle "playchess.com"]
[Source "ChessBase"]
[SourceQuality "1"]
[TimeControl "40/5400+30:1800+30"]

{[%evp 9,40,17,18,18,21,12,13,-6,0,0,0,0,16,16,35,39,25,19,58,63,56,50,41,25,97,108,99,0,0,0,0,0,0]} 1. Nf3 {[%emt 0:00:42]} c5 {[%emt 0:00:33]} 2. b3 {[%emt 0:02:51]} d5 {[%emt 0:01:10]} 3. e3 {[%emt 0:00:19]} a6 {[%emt 0:01:41]} 4. Bb2 {[%emt 0:00:56]} Nc6 {[%emt 0:00:18]} 5. d4 {[%emt 0:03:50]} cxd4 {[%emt 0:02:28]} 6. Nxd4 {[%emt 0:01:23] A06: Réti Opening: 1 Nf3 d5.} Nf6 {[%emt 0:01:54]} 7. Nd2 {[%emt 0:10:55]} Nxd4 {[%emt 0:03:39]} 8. Bxd4 {[%emt 0:00:13]} Qc7 {[%emt 0:04:31]} 9. c4 {[%emt 0:08:56]} e5 {[%emt 0:01:30]} 10. Bb2 {[%emt 0:02:58] [#]} dxc4 $146 {[%emt 0:02:38]} ({Predecessor:} 10... d4 11. exd4 exd4 12. Bxd4 Be6 13. Be2 O-O-O 14. Bc3 Bc5 15. Qc2 Qf4 16. O-O Bf5 {0-1 (27) Moussard,J (2651)-Salem,A (2690) Chess.com INT 2022}) 11. Bxc4 {[%emt 0:02:02]} b5 {[%emt 0:00:51]} 12. Be2 {[%emt 0:01:25]} Bb7 {[%emt 0:03:10]} 13. Rc1 {[%emt 0:02:09][%cal Ba1c1,Bc1c7,Bc7b7][%mdl 32]} Qa5 {[%emt 0:13:58] White must now prevent ...Rd8.} 14. Bxe5 {[%emt 0:11:20] Hoping for Bf3.} Bb4 $1 {[%emt 0:07:33]} 15. a3 $36 {[%emt 0:11:17][%mdl 2048] White has good play.} (15. Bf3 $5 {[%cal Rf3b7]} Bxf3 16. gxf3 $14) 15... Bxa3 {[%emt 0:02:09]} 16. Rc7 {[%emt 0:08:55]} (16. Rc2 $5 {[%cal Re2f3]}) 16... Ne4 {[%emt 0:17:35]} 17. Rxb7 $16 {[%emt 0:05:31]} Nxd2 {[%emt 0:01:35] [#]} 18. Bc7 {[%emt 0:03:22] This bishop pair is nice.} ({Wrong is} 18. Qxd2 $2 Bb4 19. Re7+ (19. Bxb5+ $2 axb5 20. Ke2 Bxd2 $19) 19... Kf8 $19) ({Don't blunder} 18. Bxg7 $2 O-O-O 19. Rd7 (19. b4 $2 Nf3+ 20. gxf3 Qxb4+ 21. Kf1 Rxd1+ 22. Bxd1 Rg8 $19) 19... Nf3+ 20. Kf1 Rxd7 $19) ({White should try} 18. Bh5 $1 $16 {[%cal Rh5f7]} g6 {[#]} 19. Ke2 $1 (19. Bxh8 O-O-O $11) (19. Qxd2 $2 Bb4 $19)) 18... Nf3+ $1 $11 {[%emt 0:00:13] The position is equal.} 19. Kf1 {[%emt 0:00:04]} Nd2+ {[%emt 0:00:09]} 20. Ke1 {[%emt 0:01:26]} Nf3+ $1 {[%emt 0:00:14] Weighted Error Value: White=0.15 (very precise) /Black=0.14 (very precise)} 1/2-1/2

[Event "31st Kavala Open-A 2022"]
[Site "Kavala"]
[Date "2022.07.29"]
[Round "5.6"]
[White "Karthik Venkataraman"]
[Black "Charkhalashvili, Inga"]
[Result "1-0"]
[ECO "A07"]
[WhiteElo "2483"]
[BlackElo "2276"]
[Annotator "TA"]
[PlyCount "103"]
[EventDate "2022.07.27"]
[EventType "swiss"]
[EventCountry "GRE"]
[SourceTitle "playchess.com"]
[Source "ChessBase"]
[SourceQuality "1"]
[TimeControl "40/5400+30:1800+30"]

{[%evp 14,103,9,10,20,0,32,33,27,32,28,16,22,18,19,8,8,10,89,88,100,89,93,95,105,97,201,188,334,333,341,341,337,323,362,341,345,336,344,326,349,352,310,281,304,301,395,402,408,402,391,383,503,478,514,477,481,420,551,533,702,746,843,827,821,825,786,778,776,750,1157,1134,1124,815,757,770,889,728,729,711,828,683,29994,29995,29995,29996,29996,29992,29997,29998,29998,29999]} 1. b3 {[%emt 0:02:18]} Nf6 {[%emt 0:00:53]} 2. Bb2 {[%emt 0:00:09]} d5 {[%emt 0:01:10]} 3. Nf3 {[%emt 0:00:19]} c6 {[%emt 0:01:34]} 4. d3 {[%emt 0:01:46]} Bf5 {[%emt 0:00:21]} 5. Nbd2 {[%emt 0:00:07]} e6 {[%emt 0:00:37]} 6. g3 {[%emt 0:00:15]} h6 {[%emt 0:00:50]} 7. Bg2 {[%emt 0:00:06]} Nbd7 {[%emt 0:00:12]} 8. O-O {[%emt 0:00:08]} a5 {[%emt 0:00:42] A07: Réti Opening: New York and Capablanca Systems.} 9. a3 {[%emt 0:00:52]} Be7 {[%emt 0:02:59]} 10. e4 {[%emt 0:00:11]} dxe4 {[%emt 0:03:43] White is slightly better.} 11. dxe4 {[%emt 0:00:06]} Bh7 {[%emt 0:00:06]} 12. Qe2 {[%emt 0:01:22]} O-O {[%emt 0:04:52] [#]} 13. Rfd1 $146 {[%emt 0:01:26]} ({Predecessor:} 13. e5 Nd5 14. c4 Nc7 15. Rfd1 Qb8 16. Ne4 Rd8 17. Nfd2 Nc5 18. Nxc5 Bxc5 19. Ne4 {½-½ (60) Weber,S (2141)-Hronik,P (1899) Tatranske Zruby 2018}) 13... Qc7 {[%emt 0:00:41]} 14. e5 {[%emt 0:01:36]} Nd5 {[%emt 0:02:10]} 15. Ne4 {[%emt 0:00:40][%cal Bd2e4,Be4d6,Bd6c4,Bc4e3][%mdl 32]} Nc5 {[%emt 0:04:01] [#]} (15... Rfd8 $11) 16. Nd6 $1 $16 {[%emt 0:01:30] Black is on the road to losing.} Rfd8 {[%emt 0:05:12] [#]} 17. c4 $1 {[%emt 0:03:52]} Nxb3 {[%emt 0:20:30]} 18. cxd5 {[%emt 0:00:33]} exd5 {[%emt 0:05:54]} 19. Ra2 {[%emt 0:03:37]} f6 {[%emt 0:01:28]} (19... a4 $16) 20. Nc4 {[%emt 0:06:27][%cal Oc4b6] Hoping for Nb6!} Nc5 {[%emt 0:11:57]} (20... Rf8 {was called for.} 21. Ne3 Rae8) 21. exf6 $18 {[%emt 0:02:37]} Bxf6 {[%emt 0:00:20]} 22. Bxf6 {[%emt 0:00:41]} gxf6 {[%emt 0:00:04]} 23. Ne3 {[%emt 0:00:06]} Ne4 {[%emt 0:01:38]} 24. Qb2 {[%emt 0:01:00] Prevents Nc3.} Qf7 {[%emt 0:03:19]} 25. Nd4 {[%emt 0:04:21]} Nd6 {[%emt 0:07:04]} 26. Raa1 {[%emt 0:03:23][%cal Ba2a1,Ba1c1,Bc1c6,Bc6c5,Bc5a5,Ba5a6][%mdl 32]} Kh8 {[%emt 0:00:58]} 27. Rac1 {[%emt 0:01:29]} Re8 {[%emt 0:01:08]} 28. Nxc6 {[%emt 0:05:48]} bxc6 {[%emt 0:00:26]} 29. Rxc6 {[%emt 0:00:04]} Rab8 {[%emt 0:01:46]} 30. Qa1 {[%emt 0:00:57]} Red8 {[%emt 0:02:49]} 31. Nxd5 {[%emt 0:07:13]} Ne8 {[%emt 0:01:29]} 32. a4 {[%emt 0:04:26] Prevents Rb5.} Kg7 {[%emt 0:04:00]} 33. Rc5 {[%emt 0:01:42]} Rd7 {[%emt 0:04:21]} 34. Re1 {[%emt 0:01:24]} Rdb7 {[%emt 0:01:42]} 35. Nc3 {[%emt 0:01:49] Prevents Rb1.} Rb4 {[%emt 0:02:00]} 36. Rxa5 {[%emt 0:00:39]} Nd6 {[%emt 0:01:27]} 37. Ra6 {[%emt 0:01:31]} Rd4 {[%emt 0:01:00]} 38. Nb5 {[%emt 0:01:28]} Nxb5 {[%emt 0:00:10]} 39. axb5 {[%emt 0:00:04]} Rd7 {[%emt 0:02:15]} 40. Bc6 {[%emt 0:00:00]} Rc7 {[%emt 0:00:00]} 41. Qd4 {[%emt 0:00:55]} Bf5 {[%emt 0:04:54]} 42. Qf4 {[%emt 0:03:07]} Bh3 {[%emt 0:01:18]} 43. Qd6 {[%emt 0:08:35] b6 is the strong threat.} ({Not} 43. Be8 $2 Re7 44. Rxe7 Qxe7 $19) 43... Rbc8 {[%emt 0:02:16]} 44. Ra4 {[%emt 0:00:30]} Qh5 {[%emt 0:07:40]} 45. Re7+ {[%emt 0:01:10]} Rxe7 {[%emt 0:01:29]} 46. Qxe7+ {[%emt 0:00:04]} Kg8 {[%emt 0:01:08]} 47. g4 {[%emt 0:00:37]} Qxb5 {[%emt 0:09:55][%csl Gh3][%cal Rb5f1]} 48. Qe6+ {[%emt 0:00:08] White mates.} Kg7 {[%emt 0:00:17]} 49. Ra7+ {[%emt 0:00:04]} (49. Bxb5 $2 Rc1+) 49... Kg6 {[%emt 0:00:06]} 50. Qe4+ {[%emt 0:00:22]} (50. Bxb5 $2 Rc1+) 50... f5 {[%emt 0:00:31]} 51. Qe6+ {[%emt 0:00:05]} (51. Bxb5 $2 {gets mated.} Rc1+) 51... Kg5 {[%emt 0:00:11]} 52. Rg7+ {[%emt 0:00:06] Weighted Error Value: White=0.06 (flawless) /Black=0.35} (52. Bxb5 $2 {leads to mate.} Rc1+) 1-0

[Event "31st Kavala Open-A 2022"]
[Site "Kavala"]
[Date "2022.07.29"]
[Round "5.7"]
[White "Koutlas, Nikolaos"]
[Black "Bharath Subramaniyam H"]
[Result "0-1"]
[ECO "B90"]
[WhiteElo "2314"]
[BlackElo "2479"]
[Annotator "TA"]
[PlyCount "114"]
[EventDate "2022.07.27"]
[EventType "swiss"]
[EventCountry "GRE"]
[SourceTitle "playchess.com"]
[Source "ChessBase"]
[SourceQuality "1"]
[TimeControl "40/5400+30:1800+30"]

{[%evp 15,114,2,28,37,29,11,34,21,32,17,17,10,39,28,22,9,20,10,14,-15,-22,-11,0,-7,-7,-36,-48,-73,-61,-172,-173,-174,-176,-168,-164,-197,-117,-124,-79,-75,-8,-33,-46,-49,-46,-92,-45,-106,-109,-115,-41,-74,-61,-72,0,0,0,0,0,0,0,0,0,-106,-106,-106,-106,-106,-106,-106,-106,-106,-99,-106,-99,-187,-178,-272,-262,-440,-452,-480,-477,-458,-442,-475,-468,-458,-442,-1016,-952,-900,-808,-635,-1231,-1631,-1362,-1634,-1208,-12833,-4531]} 1. e4 {[%emt 0:00:10]} c5 {[%emt 0:00:06]} 2. Nf3 {[%emt 0:00:06]} d6 {[%emt 0:02:23]} 3. d4 {[%emt 0:00:10]} cxd4 {[%emt 0:00:05]} 4. Nxd4 {[%emt 0:00:05]} Nf6 {[%emt 0:00:07]} 5. Nc3 {[%emt 0:00:17]} a6 {[%emt 0:02:15]} 6. Be3 {[%emt 0:03:46]} e5 {[%emt 0:01:55]} 7. Nf3 {[%emt 0:00:07]} Be7 {[%emt 0:01:19]} 8. Bc4 {[%emt 0:01:53]} h6 {[%emt 0:07:58]} 9. O-O {[%emt 0:06:14] B90: Sicilian Najdorf: Unusual White 6th moves, 6 Be3 Ng4 and 6 Be3 e5.} O-O {[%emt 0:02:59]} 10. Qe2 {[%emt 0:03:59]} Be6 {[%emt 0:02:23]} 11. Rfd1 {[%emt 0:02:25] White is slightly better.} Nbd7 {[%emt 0:09:16]} 12. a4 {[%emt 0:08:51]} Rc8 {[%emt 0:03:38]} 13. Bb3 {[%emt 0:04:06]} Qc7 {[%emt 0:17:26]} 14. Nd2 {[%emt 0:11:34]} Rfd8 {[%emt 0:01:42] [#]} 15. Nd5 $146 {[%emt 0:06:47]} ({Predecessor:} 15. Nf1 Bxb3 16. cxb3 Nc5 17. a5 b5 18. axb6 Qxb6 19. Ng3 Qxb3 {0-1 (76) Winkler,A-Schwenger,K DESC email 2006}) 15... Nxd5 {[%emt 0:08:09]} 16. exd5 {[%emt 0:00:07]} Bf5 {[%emt 0:00:07]} 17. c3 {[%emt 0:09:01]} Nc5 {[%emt 0:08:28]} 18. Bc4 {[%emt 0:02:19] Inhibits Bd3.} Bg6 {[%emt 0:08:14]} 19. f3 {[%emt 0:07:14]} Bg5 {[%emt 0:02:07]} 20. Bxg5 {[%emt 0:01:59]} hxg5 {[%emt 0:00:02]} 21. b4 {[%emt 0:00:59]} Nd7 {[%emt 0:04:56]} 22. a5 {[%emt 0:01:09] Against Nb6} (22. Rac1 $15) 22... e4 $1 $19 {[%emt 0:01:49] Threatens to win with ...exf3.} 23. Ba2 {[%emt 0:07:18]} (23. fxe4 Ne5 24. Bd3 Qxc3 $17) 23... exf3 {[%emt 0:03:33]} (23... Qxc3 24. Nxe4 Bxe4 25. Qxe4 $17) 24. Nxf3 {[%emt 0:00:23]} Qxc3 {[%emt 0:01:00]} 25. Nxg5 {[%emt 0:00:38]} Qxb4 {[%emt 0:03:43]} (25... Bc2 $1 $19 {[%cal Rc2d1]} 26. Rf1 Bd3) 26. Bb1 $17 {[%emt 0:02:50] Bxg6 is the strong threat.} Re8 {[%emt 0:00:25]} 27. Qf2 {[%emt 0:02:42]} Qc5 {[%emt 0:03:07] Black is more active.} ({Black should try} 27... Nf6 $1 $17 {[%cal Rf6g4] And now ...Ng4 would win.} 28. Bxg6 fxg6) 28. Bxg6 {[%emt 0:00:28]} Qxf2+ {[%emt 0:00:57]} 29. Kxf2 {[%emt 0:00:01]} fxg6 {[%emt 0:00:01]} 30. Ne6 {[%emt 0:01:00]} (30. Kg1 $15) 30... Nc5 {[%emt 0:00:26]} (30... Rc2+ $17 31. Kg1 Nf6) 31. Rab1 {[%emt 0:01:24]} (31. Rdb1 $15) 31... Ne4+ {[%emt 0:01:35]} 32. Ke1 {[%emt 0:00:08]} Re7 {[%emt 0:00:21]} ({Black should play} 32... b5 $1 $17 {Hoping for ...Nc3.} 33. axb6 Nc3) 33. Rb6 {[%emt 0:01:14]} Nc3 {[%emt 0:02:21]} 34. Rd3 {[%emt 0:08:15] [#]} Nb5 {[%emt 0:00:57]} (34... Nxd5 $1 $17 35. Rxd5 Rxe6+ 36. Kd1 Rd8) 35. Kd2 $11 {[%emt 0:00:36]} Rc4 {[%emt 0:01:31]} 36. Rf3 {[%emt 0:04:14]} Rc8 {[%emt 0:00:01] Prevents Rf8+.} 37. Rg3 {[%emt 0:00:24]} Rf7 {[%emt 0:00:28]} 38. Rxg6 {[%emt 0:01:45]} Na3 {[%emt 0:00:13]} 39. Rg4 {[%emt 0:02:18]} (39. Rb3 $11 Nc4+ 40. Kd1) 39... Nc4+ $17 {[%emt 0:00:52]} 40. Rxc4 {[%emt 0:00:00]} Rxc4 {[%emt 0:00:00]} 41. Rxd6 {[%emt 0:00:13][%mdl 4096] Endgame KRR-KRN} Rf2+ {[%emt 0:02:13]} 42. Kd3 {[%emt 0:04:00]} Ra4 {[%emt 0:05:32]} 43. Rd8+ {[%emt 0:05:59]} Kh7 {[%emt 0:00:19]} 44. d6 {[%emt 0:00:38] aiming for d7.} Rxa5 {[%emt 0:03:46]} 45. Kc4 {[%emt 0:09:09] [#]} (45. d7 $17 Rd5+ 46. Ke4) 45... Rc2+ $1 $19 {[%emt 0:04:12]} ({Don't play} 45... Rxg2 46. d7 Rd2 47. Re8 $14) 46. Kd3 {[%emt 0:06:13]} (46. Kb3 $142 Rc6 47. d7 Rb5+ 48. Ka4 Rxe6 49. Re8) 46... Rxg2 {[%emt 0:00:55]} 47. Kc3 $2 {[%emt 0:03:22]} (47. d7 {was called for.} Rd5+ 48. Ke3 (48. Ke4 $2 Rgd2 $19)) 47... Ra3+ {[%emt 0:01:38] Black is clearly winning.} 48. Kb4 {[%emt 0:03:19]} Rd3 {[%emt 0:00:51]} 49. d7 {[%emt 0:01:55]} Rgd2 {[%emt 0:01:03]} 50. Nf8+ {[%emt 0:00:02]} Kh6 {[%emt 0:00:33]} 51. Kc5 {[%emt 0:00:07]} Rd6 {[%emt 0:00:51] White must now prevent ...R2d4.} 52. Rb8 {[%emt 0:00:50]} (52. Re8 $142 b6+ 53. Kc4) 52... R2d5+ {[%emt 0:00:47]} 53. Kc4 {[%emt 0:00:06]} Rxd7 {[%emt 0:00:31]} 54. Nxd7 {[%emt 0:00:02]} Rxd7 {[%emt 0:00:01]} 55. Kc5 {[%emt 0:00:08]} Kg5 {[%emt 0:00:35]} 56. Rg8 {[%emt 0:00:26]} g6 {[%emt 0:00:23] Strongly threatening ...Rh7.} 57. Kb6 {[%emt 0:00:33]} Rh7 {[%emt 0:00:09] Weighted Error Value: White=0.62/Black=0.11 (very precise)} 0-1

[Event "31st Kavala Open-A 2022"]
[Site "Kavala"]
[Date "2022.07.29"]
[Round "5.8"]
[White "Kalogridis, Antonios"]
[Black "Pijpers, Arthur"]
[Result "1/2-1/2"]
[ECO "A57"]
[WhiteElo "2272"]
[BlackElo "2458"]
[Annotator "TA"]
[PlyCount "41"]
[EventDate "2022.07.27"]
[EventType "swiss"]
[EventCountry "GRE"]
[SourceTitle "playchess.com"]
[Source "ChessBase"]
[SourceQuality "1"]
[TimeControl "40/5400+30:1800+30"]

{[%evp 11,41,22,38,28,40,41,50,39,43,43,106,121,110,104,104,89,133,92,89,84,116,97,90,90,97,89,100,95,99,89,87,31]} 1. d4 {[%emt 0:00:01]} Nf6 {[%emt 0:00:06]} 2. c4 {[%emt 0:00:02]} c5 {[%emt 0:00:04]} 3. d5 {[%emt 0:00:03]} b5 {[%emt 0:00:05]} 4. cxb5 {[%emt 0:00:04]} a6 {[%emt 0:00:04]} 5. e3 {[%emt 0:00:03]} e6 {[%emt 0:00:47]} 6. dxe6 {[%emt 0:00:56]} fxe6 {[%emt 0:00:07]} 7. Nc3 {[%emt 0:00:06] A57: Benko/Volga Gambit.} d5 {[%emt 0:01:49]} 8. Nf3 {[%emt 0:00:24]} Be7 {[%emt 0:00:52]} 9. Be2 {[%emt 0:03:21] White is slightly better.} O-O {[%emt 0:00:06]} 10. O-O {[%emt 0:01:23] [#]} c4 $146 {[%emt 0:00:04] [#]} (10... axb5 $14 11. Bxb5 Ba6) ({Predecessor:} 10... axb5 11. Bxb5 Bb7 12. Qe2 Nc6 13. Rd1 Qc7 14. h3 Rad8 15. Bd3 Nb4 16. Bb1 Ba6 {0-1 (52) Kukhmazov,A (2482)-Demidov,M (2571) Sochi 2022}) 11. b3 $1 $16 {[%emt 0:15:20]} Qa5 {[%emt 0:23:37]} 12. Bd2 {[%emt 0:00:47][%cal Oc3d5,Bc1d2,Bd2c3,Bc3e5][%mdl 32] And now Nxd5! would win.} Bb4 {[%emt 0:00:05]} 13. Qc2 {[%emt 0:06:16]} axb5 {[%emt 0:01:43]} 14. a3 {[%emt 0:02:03]} Bxc3 {[%emt 0:04:37] White is better.} 15. Bxc3 {[%emt 0:00:17]} ({Much worse is} 15. Qxc3 $6 Qxc3 16. Bxc3 Nc6 $11) 15... Qc7 {[%emt 0:01:51]} 16. Be5 {[%emt 0:05:21] This bishop pair is nice.} Qe7 {[%emt 0:11:35]} 17. a4 {[%emt 0:14:56] White is more active.} ({Don't play} 17. bxc4 $6 bxc4 18. Bb2 Nbd7 $11) 17... cxb3 {[%emt 0:03:02]} 18. Qxb3 {[%emt 0:00:05]} bxa4 {[%emt 0:00:07]} 19. Rxa4 {[%emt 0:08:48]} Rxa4 {[%emt 0:00:06]} 20. Qxa4 {[%emt 0:00:06]} Bd7 {[%emt 0:01:26]} 21. Bb5 {[%emt 0:03:43] Weighted Error Value: White=0.07 (flawless) /Black=0.09 (flawless)} (21. Qa1 $16) 1/2-1/2

[Event "31st Kavala Open-A 2022"]
[Site "Kavala"]
[Date "2022.07.29"]
[Round "5.9"]
[White "Can, Isik"]
[Black "Markidis, Konstantinos"]
[Result "1/2-1/2"]
[ECO "C07"]
[WhiteElo "2445"]
[BlackElo "2259"]
[Annotator "TA"]
[PlyCount "60"]
[EventDate "2022.07.27"]
[EventType "swiss"]
[EventCountry "GRE"]
[SourceTitle "playchess.com"]
[Source "ChessBase"]
[SourceQuality "1"]
[TimeControl "40/5400+30:1800+30"]

{[%evp 13,60,0,0,0,0,0,0,-4,-9,-9,-5,-87,-91,-71,-32,-51,-54,-64,-67,-60,-62,-70,-47,-54,-53,-59,-47,-83,-94,-126,-129,-126,-134,-120,-143,-163,-154,-155,84,-122,0,-137,-145,-133,-111,-350,-84,-78,0]} 1. e4 {[%emt 0:02:24] Tiviakov,S} e6 {[%emt 0:06:23]} 2. d4 {[%emt 0:00:05]} d5 {[%emt 0:00:52]} 3. Nd2 {[%emt 0:00:03]} c5 {[%emt 0:00:40]} 4. Ngf3 {[%emt 0:00:06]} cxd4 {[%emt 0:00:24]} 5. Nxd4 {[%emt 0:00:04]} Nf6 {[%emt 0:00:53]} 6. e5 {[%emt 0:00:04]} Nfd7 {[%emt 0:00:13]} 7. N2f3 {[%emt 0:00:04]} Nc6 {[%emt 0:00:51]} 8. Bf4 $1 {[%emt 0:00:04][%mdl 4] is more profitable than 8.Nxc6 at the moment. C07: French Tarrasch: 3...c5, 4 Ngf3 and 4 exd5 Qxd5.} Be7 {[%emt 0:00:15] [#] is the legacy move (8...Qb6).} 9. Bb5 $146 {[%emt 0:01:04]} ({Predecessor:} 9. c3 g5 10. Nxg5 Nxd4 11. Nxf7 Nc2+ 12. Kd2 Qb6 13. Kxc2 Qxf2+ 14. Be2 Qxf4 15. Nxh8 Qxe5 {½-½ (25) Milov,L (2462)-Tiviakov,S (2639) Leiden 2015 CBM 168 [Tiviakov,S]}) 9... Qb6 {[%emt 0:00:27]} 10. c3 {[%emt 0:08:26] The position is equal.} a6 {[%emt 0:02:27]} 11. Ba4 {[%emt 0:02:47]} Nc5 {[%emt 0:04:21]} 12. Bc2 {[%emt 0:06:29]} (12. Bb3 $11) 12... Qxb2 $17 {[%emt 0:20:04]} 13. O-O {[%emt 0:10:01]} Qb6 {[%emt 0:09:18]} 14. Nxc6 {[%emt 0:09:50]} Qxc6 {[%emt 0:02:00]} 15. Nd4 {[%emt 0:07:22]} Qc7 {[%emt 0:00:42]} 16. Qg4 {[%emt 0:00:39]} g5 {[%emt 0:06:45]} 17. Bd2 {[%emt 0:08:51]} Bd7 {[%emt 0:09:26]} 18. f4 {[%emt 0:09:41]} h5 {[%emt 0:04:04]} 19. Qe2 {[%emt 0:02:32]} g4 {[%emt 0:01:34]} 20. f5 {[%emt 0:00:56] [#]} O-O-O $1 {[%emt 0:01:10]} 21. f6 {[%emt 0:01:34]} Bf8 {[%emt 0:00:06]} 22. a4 {[%emt 0:11:32]} Ne4 {[%emt 0:02:38]} 23. Bxe4 {[%emt 0:02:22]} dxe4 {[%emt 0:00:06]} 24. Qxe4 {[%emt 0:01:11]} Qc4 {[%emt 0:04:47]} 25. Be3 {[%emt 0:10:01]} Kb8 $2 {[%emt 0:01:54] [#]} (25... Bc6 26. Qb1 $17) (25... Bxa4 $17 {and life is bright. Threatens to win with ...Bc6.} 26. Qf4 Bh6) 26. Qf4 $2 {[%emt 0:00:03] 0x0.0019896922e6dp-1022s more active pieces.} (26. Rab1 $16 {[%csl Gb1][%cal Re4b7] stays on course.} Qd5 27. Qxd5 exd5 28. Rf2) 26... Kc8 {[%emt 0:00:03]} ({Much worse is} 26... Qxc3 $6 27. Rfc1 Qa5 28. Qe4 $15) 27. Qe4 {[%emt 0:00:02]} Bc6 {[%emt 0:00:01]} 28. Qf4 {[%emt 0:00:01]} Bc5 {[%emt 0:00:09]} ({Don't play} 28... Qxc3 29. Rac1 Rxd4 30. Rxc3 $16 (30. Bxd4 Qb4 $14)) 29. Rf2 $2 {[%emt 0:00:21]} (29. Rfe1 $17 {was called for.}) 29... Bxd4 $2 {[%emt 0:00:05]} (29... Qxc3 $19 30. Nc2 Rd3 31. Bxc5 Qxc5) 30. Bxd4 {[%emt 0:00:02]} h4 {[%emt 0:00:04] Weighted Error Value: White=0.35/Black=0.49} (30... Rhg8 $17 31. Rd2 h4) 1/2-1/2

[Event "31st Kavala Open-A 2022"]
[Site "Kavala"]
[Date "2022.07.29"]
[Round "5.10"]
[White "Tarhan, Adar"]
[Black "Vrolijk, Liam"]
[Result "0-1"]
[ECO "B81"]
[WhiteElo "2201"]
[BlackElo "2464"]
[Annotator "TA"]
[PlyCount "50"]
[EventDate "2022.07.27"]
[EventType "swiss"]
[EventCountry "GRE"]
[SourceTitle "playchess.com"]
[Source "ChessBase"]
[SourceQuality "1"]
[TimeControl "40/5400+30:1800+30"]

{[%evp 14,50,26,12,31,19,11,0,0,-1,0,0,0,-5,-12,0,8,7,11,14,51,-42,-38,-43,-31,-85,-70,-288,-295,-550,-545,-637,-644,-652,-627,-608,-568,-1037,-1037]} 1. e4 {[%emt 0:00:06]} c5 {[%emt 0:00:07]} 2. Nf3 {[%emt 0:00:05]} d6 {[%emt 0:00:11]} 3. d4 {[%emt 0:00:05]} cxd4 {[%emt 0:00:07]} 4. Nxd4 {[%emt 0:00:03]} Nf6 {[%emt 0:00:13]} 5. Nc3 {[%emt 0:00:05]} a6 {[%emt 0:00:03]} 6. h3 {[%emt 0:00:10]} e6 {[%emt 0:00:16]} 7. g4 {[%emt 0:00:20]} h6 {[%emt 0:00:17]} 8. Bg2 {[%emt 0:04:10]} Be7 {[%emt 0:00:11] B81: Sicilian Scheveningen: Keres Attack.} 9. Be3 {[%emt 0:00:26]} Nc6 {[%emt 0:00:23]} 10. O-O {[%emt 0:10:37]} Nxd4 {[%emt 0:10:50] The position is equal.} 11. Qxd4 {[%emt 0:01:00]} e5 {[%emt 0:00:15]} 12. Qd2 {[%emt 0:03:16]} Be6 {[%emt 0:05:51]} 13. f4 {[%emt 0:03:25]} exf4 {[%emt 0:01:38]} 14. Bxf4 {[%emt 0:00:29]} O-O {[%emt 0:03:14] [#]} 15. Rad1 $146 {[%emt 0:03:37][%cal Rf4d6]} ({Predecessor:} 15. Kh1 Qb6 16. b3 Rac8 17. Nd5 Bxd5 18. exd5 Nd7 19. Rae1 Rfe8 20. Be4 Bh4 21. Re2 {0-1 (36) Ibarra Jerez,J (2181)-Suba,M (2508) La Roda 2004}) 15... Qb6+ {[%emt 0:08:59]} 16. Be3 {[%emt 0:03:49]} Qxb2 {[%emt 0:12:34]} 17. Rb1 {[%emt 0:01:11]} (17. Bd4 $14 Qb4 18. g5 (18. Rb1 Qc4 $11) 18... hxg5 19. Qxg5) 17... Qa3 $15 {[%emt 0:00:06]} 18. Rxb7 {[%emt 0:00:33]} Rac8 {[%emt 0:00:18]} 19. Bd4 {[%emt 0:24:00]} ({White should try} 19. Nd5 $15 Bd8 20. Bd4 Bxd5 21. exd5) 19... Nd7 $17 {[%emt 0:01:41] ...Bg5 is the strong threat.} 20. Qd3 $2 {[%emt 0:23:04] [#] This move loses the game for White.} (20. Nd5 $15 Bg5 21. Qf2) 20... Nc5 $19 {[%emt 0:06:06]} 21. Bxc5 {[%emt 0:02:42]} (21. Qf3 Bf6 22. Bxf6 Nxb7 23. Bd4) 21... Qxc5+ {[%emt 0:00:09] Black is clearly winning.} 22. Rf2 {[%emt 0:00:24]} Bh4 {[%emt 0:00:09]} ({Worse is} 22... Qxc3 23. Qxc3 Rxc3 24. Rxe7 $17) 23. Nd1 {[%emt 0:00:03]} Bxf2+ {[%emt 0:01:35]} 24. Nxf2 {[%emt 0:00:04]} Rb8 {[%emt 0:00:19]} 25. Qxa6 {[%emt 0:00:41]} Bc8 {[%emt 0:00:26] Weighted Error Value: White=0.87/Black=0.03 (flawless)} 0-1